Cogmind - Beta 15 @@@ ROGUE MODE // 2025.05.17 @ 07:09:33 Player: Fleshy Vegetable Bird Result: Destroyed by B-75 Beast with Heavy Plasma Cannon Performance ------------- Evolutions (2) 1000 Regions Visited (6) 1200 Robots Destroyed (87) 435 Value Destroyed (2470) 2470 Prototype IDs (8) 160 Alien Tech Used (0) 0 Bonus (941) 941 TOTAL SCORE: 6206 Bonus ------- High Alert Combat Kills 132 Follower Combat Kills 124 Entered Garrisons 200 Used RIF Installer 500 Friendly Fire -15 Cogmind --------- Core Integrity 0/550 Matter 194/300 Energy 100/100 System Corruption 3% Temperature Hot (210) Movement Core (50) Location -8/Garrison Parts ------- > --- POWER (1) -------- (None) > --- PROPULSION (4) --- (None) > --- UTILITY (3) ------ (None) > --- WEAPON (3) ------- (None) > --- INVENTORY (5) ---- Experimental Sensor Array Improved Signal Interpreter Improved Weapon Shielding Relay Coupler [NC] (29) Mini Grenade Launcher Peak State ------------ > --- POWER ------------ Light Nuclear Core > --- PROPULSION ------- Improved Treads Improved Treads Wheel Wheel > --- UTILITY ---------- Huge Storage Unit Launcher Guidance Computer Hardlight Generator > --- WEAPON ----------- Heavy Particle Gun High-powered Shotgun Slug Cannon > --- INVENTORY -------- Wheel Improved Heat Sink High-capacity Battery Large Matter Pod Experimental Sensor Array Improved Signal Interpreter Improved Terrain Scanner Terrain Scan Processor Energy Filter Particle Charger Particle Charger Improved Power Shielding Improved Weapon Shielding Relay Coupler [NC] Heavy Assault Rifle Proton Missile Launcher Mini Grenade Launcher Katana Signal Generator [Rating: 33] Favorites ----------- Power Light Ion Engine Engine Light Ion Engine Power Core Light Nuclear Core Propulsion Wheel Treads Improved Treads Wheel Wheel Utility Improved Terrain Scanner Device Improved Terrain Scanner Storage Huge Storage Unit Processor Launcher Guidance Computer Protection Light Armor Plating Weapon Heavy Assault Rifle Energy Gun Medium Laser Ballistic Gun Heavy Assault Rifle Ballistic Cannon Slug Cannon Launcher Grenade Launcher Slashing Weapon Katana Build | -11 -10 -10 -10 -9 -8 -8 ------- Run | Yrd Mat Min Exi Min Mat Gar Slots Evolved 4 | . . . . . 4 . Power . | . . . . . . . Propulsion 2 | . . . . . 2 . Utility 1 | . . . . . 1 . Weapon 1 | . . . . . 1 . Parts Attached 64 | 8 7 4 2 3 30 10 Power 8 | 1 1 1 . 1 3 1 Engine 5 | 1 1 1 . 1 1 . Core 3 | . . . . . 2 1 Reactor . | . . . . . . . Propulsion 20 | 3 1 2 . 1 12 1 Treads 5 | 1 . . . . 4 . Leg . | . . . . . . . Wheel 15 | 2 1 2 . 1 8 1 Hover . | . . . . . . . Flight . | . . . . . . . Utility 16 | 2 1 . 1 . 7 5 Device 8 | 1 . . . . 4 3 Storage 5 | 1 1 . 1 . 1 1 Processor 1 | . . . . . . 1 Hackware . | . . . . . . . Protection 2 | . . . . . 2 . Artifact . | . . . . . . . Weapon 20 | 2 4 1 1 1 8 3 Energy Gun 5 | 1 . . 1 . 3 . Energy Cannon . | . . . . . . . Ballistic Gun 8 | 1 3 . . 1 3 . Ballistic Cannon 1 | . . . . . 1 . Launcher 5 | . 1 1 . . 1 2 Special Weapon . | . . . . . . . Impact Weapon . | . . . . . . . Slashing Weapon 1 | . . . . . . 1 Piercing Weapon . | . . . . . . . Special Melee Weapon . | . . . . . . . Unidentified Prototypes 3 | . . . . . 3 . Parts Lost 31 | . 2 . . . 14 15 Power 5 | . 1 . . . 2 2 Propulsion 11 | . 1 . . . 5 5 Utility 6 | . . . . . 4 2 Weapon 9 | . . . . . 3 6 Highest Loss Streak 14 | . 1 . . . 3 14 To Critical Strikes . | . . . . . . . Average Backups 17 | 2 12 14 16 18 22 21 Power 2 | . . . 3 4 3 2 Propulsion 3 | 1 4 4 4 4 4 1 Utility 6 | . 4 5 5 5 10 12 Weapon 4 | . 4 4 4 4 4 4 Tool/Special . | . . . . . . . Unused Backups 20 | 2 2 3 . . 1 12 Power 4 | . . 1 . . . 3 Propulsion 2 | 2 . . . . . . Utility 11 | . 1 1 . . . 9 Weapon 3 | . 1 1 . . 1 . Tool/Special . | . . . . . . . Average Slot Usage (%) 97 | . 99 100 100 100 93 92 Engine 9 | . 13 14 14 14 2 . Core 2 | . . . . . 6 8 Treads 2 | . . . . . 6 8 Wheel 26 | . 27 28 28 28 26 22 Device 12 | . 14 14 14 14 10 8 Storage 12 | . 14 14 14 14 9 9 Protection 1 | . . . . . 4 . Energy Gun 2 | . 4 . 13 1 1 1 Ballistic Gun 17 | . 19 19 14 18 18 7 Launcher 6 | . 4 8 . 8 3 14 Peak Build Rating 33 | 9 13 13 13 16 29 33 Average Rating 17 | 4 11 12 12 13 24 29 On Entrance 12 | . 9 12 12 13 16 28 Naked Turns 4 | . . . . . . 4 Heaviest Build 108 | 14 32 30 89 90 108 103 Greatest Support 40 | 20 20 20 20 20 40 30 Greatest Overweight (x) 10 | 1 2 1 4 4 5 10 Average Overweight (x) 2 | . . 1 3 4 3 3 Largest Inventory Capacity 25 | 8 15 15 25 25 25 25 Average Capacity 21 | 7 14 15 24 25 25 24 Most Carried 25 | 5 15 15 18 24 25 24 Average Carried 18 | 2 12 14 17 19 23 21 Final Capacity 25 | 8 15 15 25 25 25 5 Final Carried 25 | 4 15 15 18 24 25 5 Class Distribution -------------------- 57% | Scavenger-Mutant 23% | Scavenger-Tank 10% | Mutant 4% | Scavenger-Gunner Dominant Class ---------------- Scavenger-Mutant | -10/Materials Scavenger-Mutant | -10/Mines Scavenger-Mutant | -10/Exiles Scavenger-Mutant | -9/Mines Scavenger-Tank | -8/Materials Scavenger-Gunner | -8/Garrison Resources | -11 -10 -10 -10 -9 -8 -8 ----------- Run | Yrd Mat Min Exi Min Mat Gar Matter Collected 2963 | 280 255 422 . 225 1483 298 Remotely . | . . . . . . . Salvage Created 2682 | 182 577 29 . 36 1459 399 Parts 157 | 14 40 4 . 4 73 22 Haulers Intercepted 5 | . 1 . . . 4 . Recyclers Shooed 2 | . . . . . 2 . Parts Field Recycled . | . . . . . . . Retrieved Matter . | . . . . . . . Parts Self-Destructed . | . . . . . . . Prevented . | . . . . . . . Kills | -11 -10 -10 -10 -9 -8 -8 ------- Run | Yrd Mat Min Exi Min Mat Gar Combat Hostiles Destroyed 55 | . 12 1 . 8 26 8 Guns 30 | . 7 1 . 2 20 . Cannons 4 | . . . . . 4 . AOE 21 | . 5 . . 6 2 8 Classes Destroyed 13 | 2 6 . . 1 4 . Worker 10 | . 6 . . . 4 . Builder 5 | . 1 . . . 4 . Tunneler 8 | 4 . 1 . . 3 . Hauler 5 | . 1 . . . 4 . Recycler 4 | 1 2 . . . 1 . Operator 2 | . 1 . . . 1 . Watcher 1 | . . . . . 1 . Swarmer 18 | . 9 1 . 5 3 . Grunt 22 | . 3 . . . 16 3 Duelist 5 | . . . . . 1 4 Sentry 6 | . . . . . 5 1 Hunter 1 | . . . . . 1 . Assembled 3 | . . . . 3 . . Best Kill Streak 12 | 3 6 1 . 3 12 4 Combat Bots Only 5 | . 3 1 . 3 5 4 Max Kills in Single Turn 3 | 1 3 1 . 2 2 1 Gunslinging . | . . . . . . . Exploded 2 | . 1 . . 2 1 1 Melee . | . . . . . . . Uniques/NPCs Destroyed . | . . . . . . . Combat | -11 -10 -10 -10 -9 -8 -8 -------- Run | Yrd Mat Min Exi Min Mat Gar Hostile Shots Fired 294 | . 48 1 . 14 151 80 Missed 83 | . 14 . . 6 40 23 Hits 211 | . 34 1 . 8 111 57 Melee 2 | . . . . . 2 . Projectile 209 | . 34 1 . 8 109 57 AOE 1 | . . . . . 1 . Critical Strikes 8 | . 1 . . . 3 4 Damage Taken 3864 | . 401 31 . 159 1820 1453 Core 706 | . 84 11 . 42 147 422 Absorbed by Shields 426 | . . . . . 322 104 Regen/Repaired (Parts) 19 | . 19 . . . . . Core Remaining (%) 72 | 100 . . . 45 . . Volleys Fired 226 | 21 54 5 . 14 108 24 Largest 3 | 1 2 2 . 2 3 3 Hottest 120 | 40 60 46 . 46 119 120 Shots Fired 493 | 21 101 7 2 17 289 56 Gun 402 | 21 94 5 1 7 244 30 Cannon 50 | . . . . . 39 11 Launcher 41 | . 7 2 1 10 6 15 Special . | . . . . . . . Kinetic 380 | . 77 5 . 7 260 31 Thermal 72 | 21 17 . 1 . 23 10 Explosive 31 | . 7 2 1 10 6 5 Electromagnetic 10 | . . . . . . 10 Robot Hit Streak 14 | 5 6 2 . 5 14 7 Robot Miss Streak 8 | 2 8 1 . 2 6 2 Penetration Max . | . . . . . . . Secondary Targets 1 | . . . . . 1 . Max Gunslinging Chain 1 | . . . . . 1 . Shots Hit Robots 273 | 14 39 3 . 6 165 46 Core Hits 149 | 6 27 2 . 10 83 21 Critical Kills 2 | . . . . . 2 . Critical Parts Destroyed 5 | . . . . . 3 2 Critical Strikes 14 | . . . . . 7 7 Burn 2 | . . . . . 2 . Destroy 9 | . . . . . 5 4 Sever 3 | . . . . . . 3 Melee Attacks 13 | . . . . . . 13 Impact . | . . . . . . . Slashing 13 | . . . . . . 13 Piercing . | . . . . . . . Sneak Attacks . | . . . . . . . Combat Hostiles . | . . . . . . . Follow-up Attacks . | . . . . . . . Damage Inflicted 6570 | 150 936 62 . 383 3485 1554 Guns 3649 | 150 592 62 . 40 2365 440 Cannons 889 | . . . . . 621 268 Explosions 1801 | . 344 . . 343 499 615 Melee 231 | . . . . . . 231 Ramming . | . . . . . . . Kinetic 3922 | . 511 62 . 40 2766 543 Thermal 663 | 150 81 . . 47 220 165 Explosive 1336 | . 344 . . 296 469 227 Electromagnetic 418 | . . . . . 30 388 Impact . | . . . . . . . Slashing 231 | . . . . . . 231 Piercing . | . . . . . . . Highest Corruption 3 | . 2 2 2 2 3 3 Average Corruption 2 | . 1 2 2 2 3 3 Corruption Purged . | . . . . . . . Corruption Blocked . | . . . . . . . Effects 67 | . 2 9 10 18 17 11 Message Errors 13 | . . . 3 3 2 5 Matter Fused 17 | . . 3 2 3 6 3 Heat Flow Errors 5 | . . 2 . 2 1 . Energy Discharges 8 | . 1 1 2 2 2 . Parts Fused 1 | . . 1 . . . . Data Loss (minor) 11 | . . 1 1 5 1 3 Data Loss (major) 2 | . . 1 . 1 . . Misfires 5 | . 1 . 2 1 1 . Alerts 1 | . . . . . 1 . Weapon Failures 4 | . . . . 1 3 . Overload Shots . | . . . . . . . Overflow Damage 251 | . 50 . . 39 118 44 Projectiles 12 | . . . . . 12 . Explosions 239 | . 50 . . 39 106 44 Melee . | . . . . . . . Knockbacks 4 | . . . . . 4 . Impact . | . . . . . . . Kinetic 4 | . . . . . 4 . Secondary . | . . . . . . . Self-Inflicted Damage 465 | . 48 23 . 88 306 . Shots 13 | . 2 1 . 3 7 . Rammed . | . . . . . . . Targets Rammed . | . . . . . . . Kicked . | . . . . . . . Crushed . | . . . . . . . Highest Temperature 376 | . 64 226 10 237 375 376 Average Temperature 85 | . 35 115 7 92 76 123 Received Heat Transfer 1408 | . 108 . . . 606 694 Effects 2 | . . . . . . 2 Shutdowns 1 | . . . . . . 1 Energy Bleed 1 | . . . . . . 1 Siege Activations . | . . . . . . . Martial Activations . | . . . . . . . Shielding Activations . | . . . . . . . Robots Disrupted . | . . . . . . . Combat Hostiles . | . . . . . . . Robots Corrupted . | . . . . . . . Combat Hostiles . | . . . . . . . Parts Fried 1 | . . . . . . 1 Impact Corruptions . | . . . . . . . Robots Melted . | . . . . . . . Combat Hostiles . | . . . . . . . Parts Melted 1 | . . . . . 1 . Heat Transferred 1500 | 350 175 . . 50 629 296 Parts Sabotaged . | . . . . . . . Parts Stolen . | . . . . . . . Parts Stripped . | . . . . . . . Power Chain Reactions 1 | . . . . . 1 . Alert | -11 -10 -10 -10 -9 -8 -8 ------- Run | Yrd Mat Min Exi Min Mat Gar Maximum Alert Level 2 | . . . . . 2 2 Low Security (%) 67 | 100 100 100 . 100 23 . Level 1 18 | . . . . . 53 22 Level 2 14 | . . . . . 22 77 Level 3 . | . . . . . . . Level 4 . | . . . . . . . Level 5 . | . . . . . . . High Security . | . . . . . . . Max Security . | . . . . . . . Peak Influence 620 | 10 169 90 . 179 524 620 Initial 330 | . . 48 . . 21 330 Average 162 | 2 55 19 . 54 298 494 Influence Increases 2423 | 25 463 146 . 348 1140 301 Destroy 0b10 Robot/C 1240 | . 240 60 . 160 620 160 Destroy 0b10 Robot/NC 175 | 25 55 5 . . 90 . Destroy Leader 242 | . 52 10 . 30 150 . Allied During Kill 19 | . . 3 . 4 12 . Successful Hack 64 | . 55 . . . 9 . Disable Machine 210 | . . 15 . 75 120 . Anti-Garrison Action 100 | . . . . . . 100 Destroy Structure 268 | . 46 8 . 79 94 41 Partial Spotted 15 | . 15 . . . . . Lose Combat Pursuer 90 | . . 45 . . 45 . Influence Decreases 1942 | 25 338 271 . 293 687 328 Entered New Map 289 | . . 77 . . 34 178 Time Decay 1283 | 25 318 174 . 293 473 . Lost Part 310 | . 20 . . . 140 150 Lost Ally 60 | . . 20 . . 40 . Squads Dispatched 9 | . 1 1 . . 6 1 Investigation 3 | . 1 . . . 2 . Extermination . | . . . . . . . Reinforcement 2 | . . . . . 2 . Assault 2 | . . 1 . . . 1 Garrison 2 | . . . . . 2 . Intercept . | . . . . . . . Searches Triggered . | . . . . . . . Construction Impeded . | . . . . . . . Haulers Reinforced . | . . . . . . . Active Scanning Responses . | . . . . . . . Cargo Convoy Interrupts . | . . . . . . . Stealth | -11 -10 -10 -10 -9 -8 -8 --------- Run | Yrd Mat Min Exi Min Mat Gar Distress Signals 4 | . . . . . 4 . Communications Jammed . | . . . . . . . Distress Signals . | . . . . . . . Times Spotted 97 | . 22 3 . 13 47 12 Peak Tracking Total 5 | . 5 3 . 3 5 4 Tactical Retreats 7 | . . 1 . 3 3 . Traps | -11 -10 -10 -10 -9 -8 -8 ------- Run | Yrd Mat Min Exi Min Mat Gar Traps Triggered 9 | . 4 . . . 4 1 Indirectly . | . . . . . . . Trap Hack Attempts . | . . . . . . . Triggered . | . . . . . . . Disarmed . | . . . . . . . Reprogrammed . | . . . . . . . Reused . | . . . . . . . Traps Extracted . | . . . . . . . Installed . | . . . . . . . Triggered . | . . . . . . . Machines | -11 -10 -10 -10 -9 -8 -8 ---------- Run | Yrd Mat Min Exi Min Mat Gar Machines Disabled 16 | . . 1 . 5 8 2 Max in Single Turn 4 | . . 1 . 4 2 1 Garrison Relay 2 | . . . . . . 2 Machines Repaired . | . . . . . . . Machines Dismantled . | . . . . . . . Machines Sabotaged . | . . . . . . . Overloaded Fab Kills . | . . . . . . . Hacking | -11 -10 -10 -10 -9 -8 -8 --------- Run | Yrd Mat Min Exi Min Mat Gar Machines Accessed 17 | . 9 . 1 . 7 . Terminals 12 | . 8 . . . 4 . Fabricators . | . . . . . . . Repair Stations 2 | . 1 . . . 1 . Recycling Units . | . . . . . . . Scanalyzers 1 | . . . . . 1 . Garrison Access 1 | . . . . . 1 . Total Hacks 66 | . 24 . 23 . 19 . Successful 44 | . 16 . 23 . 5 . Failed 22 | . 8 . . . 14 . Catastrophic 3 | . 1 . . . 2 . Database Lockouts . | . . . . . . . Manual 25 | . 16 . . . 9 . Terminals 36 | . 22 . . . 14 . Fabricators . | . . . . . . . Repair Stations 3 | . 2 . . . 1 . Recycling Units . | . . . . . . . Scanalyzers 3 | . . . . . 3 . Garrison Access 1 | . . . . . 1 . Terminal Hacks 33 | . 9 . 23 . 1 . Record 23 | . . . 23 . . . Part Schematic 2 | . 2 . . . . . Robot Analysis 2 | . 2 . . . . . Prototype ID Bank 3 | . 3 . . . . . Branch Access Points 1 | . 1 . . . . . Terminal Index 1 | . . . . . 1 . Registered Components 1 | . 1 . . . . . Fabricator Hacks . | . . . . . . . Repair Station Hacks 2 | . 2 . . . . . Scan Component 1 | . 1 . . . . . Repair 1 | . 1 . . . . . Recycling Unit Hacks . | . . . . . . . Scanalyzer 1 | . . . . . 1 . Insert Component 1 | . . . . . 1 . Garrison Access Hacks 1 | . . . . . 1 . Unlock Access 1 | . . . . . 1 . Unauthorized Hacks 7 | . 5 . . . 2 . Terminals 7 | . 5 . . . 2 . Track 1 | . 1 . . . . . Botnet 5 | . 3 . . . 2 . Operators 1 | . 1 . . . . . Fabricators . | . . . . . . . Repair Stations . | . . . . . . . Recycling Units . | . . . . . . . Scanalyzers . | . . . . . . . Garrison Access . | . . . . . . . Data Cores Recovered 1 | . 1 . . . . . Used . | . . . . . . . Hacking Detections 14 | . 8 . . . 6 . Full Trace Events 2 | . . . . . 2 . Feedback Events . | . . . . . . . Feedback Blocked . | . . . . . . . Robot Schematics Acquired . | . . . . . . . Robots Built . | . . . . . . . Authchips . | . . . . . . . Time . | . . . . . . . Total Robot Build Rating . | . . . . . . . Part Schematics Acquired 2 | . 2 . . . . . Parts Built . | . . . . . . . Authchips . | . . . . . . . Time . | . . . . . . . Total Part Build Rating . | . . . . . . . Parts Repaired 1 | . 1 . . . . . Time 26 | . 26 . . . . . Parts Recycled . | . . . . . . . Recycled Matter . | . . . . . . . Retrieved Matter . | . . . . . . . Retrieved Components . | . . . . . . . Parts Scanalyzed 1 | . . . . . 1 . Part Schematics Acquired . | . . . . . . . Parts Damaged . | . . . . . . . Bothacking | -11 -10 -10 -10 -9 -8 -8 ------------ Run | Yrd Mat Min Exi Min Mat Gar Used RIF Installer 1 | . . . . . . 1 Robots Hacked . | . . . . . . . Non-combat . | . . . . . . . Combat . | . . . . . . . Robot Hacks Applied . | . . . . . . . Relay Couplers Released 6 | . . . . . . 6 Machine Destruction 6 | . . . . . . 6 Fabnet Peak Effective % . | . . . . . . . Robots Rewired . | . . . . . . . Allies Hacked . | . . . . . . . Hacks Repelled . | . . . . . . . Allies | -11 -10 -10 -10 -9 -8 -8 -------- Run | Yrd Mat Min Exi Min Mat Gar Total Allies 5 | . . 1 . 4 . . Largest Group 3 | . . 1 . 3 3 . Highest-Rated Group 40 | . . 31 . 40 40 . Highest-Rated Ally 31 | . . 31 . 31 16 . Total Orders . | . . . . . . . Ally Attacks 34 | . . 7 . 7 20 . Total Damage 444 | . . 103 . 103 238 . Kills 10 | . . 2 . 3 5 . Allies Corrupted . | . . . . . . . Allies Melted . | . . . . . . . Intel | -11 -10 -10 -10 -9 -8 -8 ------- Run | Yrd Mat Min Exi Min Mat Gar Active Infowar (turns) 3844 | 16 895 832 487 1064 550 . Terrain 3844 | 16 895 832 487 1064 550 . Robot Analysis Total 2 | . 2 . . . . . Derelict Logs Recovered 3 | . . 2 . 1 . . Drone Launches . | . . . . . . . Drone Recoveries . | . . . . . . . Exploration | -11 -10 -10 -10 -9 -8 -8 ------------- Run | Yrd Mat Min Exi Min Mat Gar Turns Passed 5307 | 124 895 832 487 1064 1442 463 Spaces Moved 3455 | 76 710 828 349 579 713 200 Core 28 | 16 . . . . . 12 Treads 2 | . . . . . 2 . Legs . | . . . . . . . Wheels 3425 | 60 710 828 349 579 711 188 Hover . | . . . . . . . Flight . | . . . . . . . Fastest Speed 50 | 50 80 95 95 140 110 50 Average Speed 115 | 78 93 95 138 140 129 123 Slowest Speed 480 | 95 110 95 140 140 480 230 Overloaded Moves . | . . . . . . . Propulsion Burnouts . | . . . . . . . Robots Hopped . | . . . . . . . Potential Cave-ins 4 | . . . . 4 . . Cave-ins Triggered . | . . . . . . . Exploration Rate (%) 64 | 5 97 100 79 97 57 17 Regions Visited 6 Branch Regions 3 Pre-discovered Areas 2 | . . 1 1 . . . Known Exits Taken 2 | . 1 . . . 1 . Unknown Exits Taken 4 | 1 . 1 1 1 . . Scrap Searched 2 | . . 1 . 1 . . Spaces Dug 14 | . . . . 7 7 . Terrain Destroyed 284 | . 46 16 6 94 97 25 Melee . | . . . . . . . Projectile 16 | . . . . . 15 1 AOE 268 | . 46 16 6 94 82 24 Terrain Rammed . | . . . . . . . Walls Destroyed . | . . . . . . . Machines Disabled . | . . . . . . . Actions | -11 -10 -10 -10 -9 -8 -8 --------- Run | Yrd Mat Min Exi Min Mat Gar Total 4338 | 120 845 868 353 814 993 345 Wait 404 | . 34 15 . 208 65 82 Move 3449 | 75 709 827 348 578 712 200 Hop . | . . . . . . . Pick Up 101 | 13 26 8 3 8 42 1 Fast Attach . | . . . . . . . Attach 47 | 8 6 . . . 25 8 Detach 2 | 1 . . . . . 1 Swap 52 | . 7 5 2 4 23 11 Drop 44 | 2 9 8 . 2 18 5 Fire 226 | 21 54 5 . 14 108 24 Melee 13 | . . . . . . 13 Ram . | . . . . . . . Kick . | . . . . . . . Crush . | . . . . . . . Escape Stasis . | . . . . . . . Rewire . | . . . . . . . Trap . | . . . . . . . Miscellaneous . | . . . . . . . Route ------- -11/Scrapyard -10/Materials (discovered 5 exits: [*Mat x3] / *Min x2) -10/Mines (discovered 4 exits: [*Mat x2] / *Exi / [*Sub]) -10/Exiles -9/Mines (discovered 2 exits: *Mat x2) -8/Materials (discovered 3 exits: [*Fac x2] / Gar) -8/Garrison History --------- Turn | Location | Event 13 | -11/Scrapyard | Discovered new exit (range 15) 125 | -11/Scrapyard | Entered Materials 196 | -10/Materials | Discovered new exit (range 12) 251 | -10/Materials | Identified exit to Mines 328 | -10/Materials | Build established: Mutant 471 | -10/Materials | Discovered new exit (range 16) 707 | -10/Materials | Repaired Wheel 801 | -10/Materials | Discovered new exit (range 8) 936 | -10/Materials | Discovered new exit (range 15) 1020 | -10/Materials | Entered Mines 1021 | -10/Mines | Learned location of Storage (-7) 1028 | -10/Mines | Deemed a non-threat by the Exiles lab entrance 1028 | -10/Mines | Discovered new exit (range 5) 1186 | -10/Mines | Discovered new exit (range 6) 1201 | -10/Mines | Build established: Scavenger-Mutant 1401 | -10/Mines | Joined a pair of Derelicts in attacking an 0b10 outpost 1444 | -10/Mines | Met a Derelict testing a Signal Generator 1449 | -10/Mines | Found Signal Generator 1573 | -10/Mines | Discovered new exit (range 4) 1675 | -10/Mines | Discovered new exit (range 10) 1852 | -10/Mines | Entered Exiles 1898 | -10/Exiles | Met 8R-AWN 1920 | -10/Exiles | Met EX-HEX 1969 | -10/Exiles | Met EX-BIN 1988 | -10/Exiles | Met EX-DEC 1995 | -10/Exiles | Learned location of Zion (-7) 2109 | -10/Exiles | Visited The Gauntlet 2322 | -10/Exiles | Discovered new exit (range 14) 2339 | -10/Exiles | Entered Mines 2342 | -9/Mines | Received a Mining Laser from a helpful Derelict 2392 | -9/Mines | Assembled infested the area 2397 | -9/Mines | Assisted by a Guerilla fighting off Assembled 2496 | -9/Mines | Discovered new exit (range 5) 3029 | -9/Mines | Core integrity fell below 50% 3060 | -9/Mines | Found a damaged Exp. Sensor Array with a note attached 3063 | -9/Mines | Found Prototype Device 3305 | -9/Mines | A weapon hastily lodged in a ceiling crevice suddenly fell to the ground 3359 | -9/Mines | Discovered new exit (range 13) 3390 | -9/Mines | Assisted by bots powering up and referring to "LRC-V3" 3403 | -9/Mines | Entered Materials 3403 | -8/Materials | Accompanied by 3 allies 3403 | -8/Materials | Evolved 4 slots: Propulsion x2, Utility x1, Weapon x1 3778 | -8/Materials | Lost 3 parts (1n1u1w) 3878 | -8/Materials | Lost 3 parts (1p1n1w) 3930 | -8/Materials | Discovered new exit (range 9) 4128 | -8/Materials | Build established: Scavenger-Tank 4383 | -8/Materials | Identified Exp. Sensor Array 4474 | -8/Materials | Garrison activated, responded to threat 4506 | -8/Materials | Discovered new exit (range 10) 4662 | -8/Materials | Garrison activated, responded to threat 4844 | -8/Materials | Identified exit to Garrison 4845 | -8/Materials | Entered Garrison 4889 | -8/Garrison | Triggered checkpoint 5027 | -8/Garrison | Installed Relay Interface Framework 5045 | -8/Garrison | Garrison Relay disabled 5078 | -8/Garrison | Garrison Relay disabled 5146 | -8/Garrison | Triggered checkpoint 5205 | -8/Garrison | Spotted B-75 Beast 5205 | -8/Garrison | Spotted B-75 Beast 5293 | -8/Garrison | Core integrity fell below 50% 5301 | -8/Garrison | Core integrity fell below 20% 5308 | -8/Garrison | Destroyed by B-75 Beast with Heavy Plasma Cannon Last Messages --------------- 05272_ Hardlight Generator destroyed. 05279_ B-75 Beast Med. Reflective Plating severed. 05280_ Hvy. Assault Rifle destroyed. 05284_ Imp. Treads destroyed. 05286_ Lgt. Nuclear Core destroyed. 05288_ System corrupted: Matter fused (-6). 05288_ Wheel destroyed. 05289_ B-75 Beast Imp. Cooling System severed. 05293_ Dropped Huge Storage Unit. 05293_ Knocked back. 05294_ Signal Generator broadcasts a burst of procedurally generated transmissions. 05294_ ALERT: Intercepting significant anomalous signal. Dispatching assault force. 05296_ Extracted 42 matter. 05299_ Dropped Particle Charger. 05302_ Katana destroyed. 05304_ Launcher Guidance Computer destroyed. 05304_ Critical hit (Meltdown: +310). Map ----- +----------------------------------------------------+ | ??????????????????????????????? ??????????????? | | ???????????????????????????????# #??????????????? | | ???????????????????????????#???# #??????????????? | | ??????????????????????????# ??# ##?????????????? | | ??????????????????????????# #" "###???????????? | | ???????????????????????????? * ????????????? | | ??????????????????????????????" "#?????????????? | | ?????????????????????????????? [*"#?????????????? | | ?????????????????????????????# %%="#??????? #????? | | ????????##################### [ "###### #????? | | ????????# %= % #????? | | ????????# =[! [[ #????? | | ????????# [ = % = !%= #????? | | ????????# ##"##"######%BB "### ###########????? | | ????????# #?????????###BB!#### ###????????????? | | ????????#####?????????# !!!#"""" #????????????? | | ??????????????????????# !!BB!! + #????????????? | | ??????????????????????# !BB"### #????????????? | | ??????????????????????###%]###?# ###????????????? | | ????????????????????????# #???# #??????????????? | | ????????????????????????#% #???# #??????????????? | | ???????????#######??????# #???# #??????????????? | | ???????????#"""" ######## #???# #######????????? | | ???????????#" ^ #???# #????????? | | ???????????#""""^##!!!### #???# ###!!!#????????? | | ???????????############?#@ #???# #????##????????? | | ????????????????????????# #???# #??????????????? | | ????????????????????????# #???# #??????????????? | | ??????????????????????### #???# ###????????????? | | ??????????????????????# # #?### # #????????????? | | ??????????????????????# /* #?# # #????????????? | | ??????????????????????# #?# = #????????????? | | ??????????????????????# !=/### / #????????????? | | ??????????????????????# #= #### # #????????????? | | ??????????????????????### ###????????????? | | ???????????????????????# ### #?????????????? | | ???????????????????????## # # #####?????????????? | | ???????????????????????## ## ##??????????????????? | | ????????????????????????###?##???????????????????? | | ?????????????????????????????????????????????????? | | ?????????????????????????????????????????????????? | | ?????????????????????????????????????????????????? | | ?????????????????????????????????????????????????? | | ?????????????????????????????????????????????????? | | ?????????????????????????????????????????????????? | | | | | | | | | | | +----------------------------------------------------+ Best States ------------- Heat Dissipation 31 Energy Generation 14 Energy Capacity 350 Matter Stores 300 Matter Capacity 300 Sight Range 16 Terrain Scan Range 16 Terrain Scan Density 10 Armor Coverage 150 Evasion (%) 50 Launcher Accuracy 20 Recoil Reduction 2 Energy Filtering 30 Item Schematics ----------------- Huge Storage Unit | -10/Materials | Hacked Wheel | -10/Materials | Hacked Robot Schematics ------------------ None Fabricated ------------ Nothing Repaired ---------- Wheel | 52% | -10/Materials Alien Tech Used ----------------- None Achievements -------------- None Challenges ------------ None Game ------ Seed TrackerStealthScrap Manual? 0 Play Time 00:53:22 Cumulative 333.5 hours Start 2025.05.17 @ 06:15:30 End 2025.05.17 @ 07:09:33 Sessions 1 Manual Loads 0 Difficulty Rogue Special Mode None Game No. 383 Rogue 383 Adventurer 0 Explorer 0 Win Type - Total 6 Types 3/1/1/1/0/0/0/0/0/0 Lore% 39 Gallery% 66 Achievement% 68 Wizard Run 0 Options --------- Layout 1 ASCII 0 Keyboard 0 Movement Numpad Keybinds 0 Fullscreen 1 Font 32/SmallcapsGlow Map View 50x35 Zoom Use 0% Tactical HUD 1 Map Filters NONE Filters NONE Steam 1 RUN: e1264415-e980-41d4-8a52-e942565ffeb3